bitfinex/quotes_BTCUSD_20250623
["timestamp","ask_amount","ask_price","bid_price","bid_amount"]
[1750672925791,0.21548898,101770.0,101760.0,0.0319]
[1750672926006,0.21948898,101770.0,101760.0,0.0319]
[1750672927969,0.21948898,101770.0,101760.0,0.0643]
[1750672929238,0.21948861,101770.0,101760.0,0.0643]
[1750672929448,0.21948861,101770.0,101760.0,0.0319]
[1750672929961,0.22931381,101770.0,101760.0,0.0319]
[1750672930416,0.21948861,101770.0,101760.0,0.0319]
[1750672930860,0.22931381,101770.0,101760.0,0.0627]
[1750672931088,0.21948861,101770.0,101760.0,0.0627]
[1750672931968,0.21949059,101770.0,101760.0,0.0627]
[1750672933688,0.05809059,101770.0,101760.0,0.0627]
[1750672934102,0.05409059,101770.0,101760.0,0.0627]
[1750672934542,0.05109059,101770.0,101760.0,0.0647]
[1750672934762,0.05109725,101770.0,101760.0,0.0647]
[1750672936853,0.05110367,101770.0,101760.0,0.0647]
[1750672937704,0.05110394,101770.0,101760.0,0.0647]
[1750672938588,0.06947161,101770.0,101760.0,0.0339]
[1750672940301,0.04192,101770.0,101760.0,0.0339]
[1750672941792,0.0517452,101770.0,101760.0,0.0339]
[1750672942013,0.43763337,101770.0,101760.0,0.002]
[1750672942236,0.06188219,101750.0,101730.0,0.0621]
[1750672942489,0.2131082,101740.0,101720.0,0.0312]
[1750672942707,0.2131082,101740.0,101730.0,4.632e-05]
[1750672942917,0.232841,101740.0,101730.0,4.632e-05]
[1750672943314,0.232841,101740.0,101730.0,0.03074632]
[1750672943550,0.25249749,101740.0,101730.0,4.632e-05]
[1750672943786,0.2426691,101740.0,101730.0,4.632e-05]
[1750672944003,0.2524973,101740.0,101730.0,4.632e-05]
[1750672944220,0.2426691,101740.0,101730.0,0.00404632]
[1750672944875,0.232841,101740.0,101730.0,0.00404632]
[1750672945153,0.232841,101740.0,101730.0,0.03754632]
[1750672946446,0.2426691,101740.0,101730.0,0.03754632]
[1750672946654,0.232841,101740.0,101730.0,0.03754632]
[1750672949178,0.071481,101740.0,101730.0,0.03754632]
[1750672950064,0.20352,101740.0,101730.0,0.06794632]
[1750672950997,0.029559,101750.0,101740.0,0.0648]
[1750672950998,0.04192,101750.0,101740.0,0.0648]
[1750672951223,0.04192,101750.0,101740.0,0.07188463]
[1750672951449,0.20348,101750.0,101740.0,0.0648]
[1750672952163,0.21264212,101750.0,101740.0,0.0648]
[1750672953118,0.21264231,101750.0,101740.0,0.0658]
[1750672953339,0.21264231,101750.0,101740.0,0.0668]
[1750672953906,0.2421242,101750.0,101740.0,0.002]
[1750672954124,0.37382359,101750.0,101740.0,0.002]
[1750672954548,0.38365197,101750.0,101740.0,0.002]
[1750672954981,0.36399673,101750.0,101740.0,0.002]
[1750672955185,0.34242406,101750.0,101740.0,0.002]
[1750672955610,0.44583471,101760.0,101740.0,0.002]
[1750672955829,0.06173456,101750.0,101740.0,0.002]
[1750672956035,0.0715617,101750.0,101740.0,0.002]
[1750672956712,0.0715617,101750.0,101740.0,0.001]
[1750672956932,0.24302814,101750.0,101740.0,0.001]
[1750672957160,0.233201,101750.0,101740.0,0.0657]
[1750672958067,0.20364,101750.0,101740.0,0.07327463]
[1750672959173,0.20364,101750.0,101740.0,0.0667]
[1750672963483,0.12252379,101760.0,101740.0,0.0667]
[1750672963734,0.09296679,101760.0,101750.0,0.0602]
[1750672963954,0.13504679,101760.0,101750.0,0.0602]
[1750672965561,0.13604679,101760.0,101750.0,0.0602]
[1750672966250,0.13704679,101760.0,101750.0,0.0602]
[1750672966787,0.04408,101760.0,101750.0,0.16049939]
[1750672967877,0.05325497,101760.0,101750.0,0.16049939]
[1750672969470,0.05325472,101760.0,101750.0,0.16049939]
[1750672973362,0.06325472,101760.0,101750.0,0.16049939]
[1750672973979,0.04208,101760.0,101750.0,0.10029939]
[1750672974516,0.04208,101760.0,101750.0,0.16499939]
[1750672977898,0.04208,101760.0,101750.0,0.0647]
[1750672978326,0.07026604,101760.0,101750.0,0.0647]
[1750672979118,0.06043977,101760.0,101750.0,0.0647]
[1750672979561,0.0800924,101760.0,101750.0,0.0647]
[1750672980839,0.05190617,101760.0,101750.0,0.0647]
[1750672981010,0.08009666,101760.0,101750.0,0.0647]
[1750672981933,0.08009666,101760.0,101730.0,4.632e-05]
[1750672981934,0.00982723,101750.0,101740.0,0.0305]
[1750672982126,0.23311928,101760.0,101740.0,0.0609]
[1750672982356,0.26131033,101760.0,101740.0,0.0609]
[1750672982760,0.25148348,101760.0,101750.0,0.0309]
[1750672983173,0.25148339,101760.0,101750.0,0.0309]
[1750672983428,0.26131004,101760.0,101750.0,0.0309]
[1750672983640,0.27213766,101760.0,101750.0,0.0309]
[1750672984058,0.26231072,101760.0,101750.0,0.0309]
[1750672984272,0.26331072,101760.0,101750.0,0.0309]
[1750672985834,0.25348387,101760.0,101750.0,0.0309]
[1750672985990,0.28232101,101760.0,101750.0,0.0309]
[1750672986407,0.27249707,101760.0,101750.0,0.0309]
[1750672987224,0.28232401,101760.0,101750.0,0.0309]
[1750672987625,0.27249707,101760.0,101750.0,0.0309]
[1750672988271,0.28232392,101760.0,101750.0,0.0309]
[1750672989163,0.25477327,101760.0,101750.0,0.0309]
[1750672989365,0.28233526,101760.0,101750.0,0.0309]
[1750672989682,0.46904968,101760.0,101750.0,0.0309]
[1750672989893,0.01965437,101750.0,101740.0,0.0616]
[1750672990095,0.0288417,101750.0,101740.0,0.0616]
[1750672991169,0.01901447,101750.0,101740.0,0.0626]
[1750672991793,0.00918733,101750.0,101740.0,0.0626]
[1750672992000,0.43166152,101760.0,101740.0,0.0315]
[1750672992215,0.48274789,101760.0,101750.0,0.0326]
[1750672992420,0.48074789,101760.0,101750.0,0.0326]
[1750672993242,0.48274789,101760.0,101750.0,0.0326]
[1750672993879,0.48174789,101760.0,101750.0,0.0326]
[1750672994292,0.48274789,101760.0,101750.0,0.0326]
[1750672994648,0.00982723,101750.0,101740.0,0.0621]
[1750672994848,0.01901586,101750.0,101740.0,0.0621]
[1750672995055,0.00918863,101750.0,101740.0,0.0621]
[1750672995268,0.01901586,101750.0,101740.0,0.0621]
[1750672995440,0.00918863,101750.0,101740.0,0.0621]
[1750672995914,0.01901586,101750.0,101740.0,0.0631]
[1750672996328,0.01901596,101750.0,101740.0,0.0641]
[1750672996541,0.01901586,101750.0,101740.0,0.0641]
[1750672998067,0.02884319,101750.0,101740.0,0.0641]
[1750672998540,0.03739369,101750.0,101740.0,0.0641]
[1750672999339,0.04722112,101750.0,101740.0,0.0641]
[1750672999561,0.03739369,101750.0,101740.0,0.0641]
[1750673000264,0.04722112,101750.0,101740.0,0.0641]
[1750673000611,0.03739279,101750.0,101740.0,0.0641]
[1750673000776,0.04722022,101750.0,101740.0,0.0641]
[1750673000995,0.03739279,101750.0,101740.0,0.0641]
[1750673001221,0.04722012,101750.0,101740.0,0.0641]
[1750673001438,0.05704774,101750.0,101740.0,0.0641]
[1750673001669,0.06687565,101750.0,101740.0,0.0336]
[1750673003127,0.06687555,101750.0,101740.0,0.0336]
[1750673003334,0.06687555,101750.0,101740.0,0.0664]
[1750673005587,0.07670346,101750.0,101740.0,0.0664]
[1750673005993,0.06687555,101750.0,101740.0,0.0664]
[1750673006250,0.05704774,101750.0,101740.0,0.0664]
[1750673006460,0.04722012,101750.0,101740.0,0.0664]
[1750673007024,0.0373927,101750.0,101740.0,0.0664]
[1750673007234,0.02756556,101750.0,101740.0,0.07304463]
[1750673007450,0.0275677,101750.0,101740.0,0.07304463]
[1750673007651,0.00918773,101750.0,101740.0,0.07304463]
[1750673009105,0.00918773,101750.0,101740.0,0.17334402]
[1750673012335,0.26809888,101780.0,101760.0,0.0619]
[1750673012587,0.0098253,101770.0,101760.0,0.0619]
[1750673012826,0.0196507,101770.0,101760.0,0.0619]
[1750673013027,0.0380348,101770.0,101760.0,0.0619]
[1750673013239,0.06157001,101770.0,101760.0,0.0619]
[1750673014543,0.06157001,101770.0,101760.0,0.06809]
[1750673015577,0.0530115,101770.0,101760.0,0.0619]
[1750673015814,0.0550115,101770.0,101760.0,0.0619]
[1750673016071,0.04818591,101770.0,101760.0,0.0619]
[1750673017401,0.0580115,101770.0,101760.0,0.0619]
[1750673019759,0.06656624,101770.0,101760.0,0.0619]
[1750673019990,0.07639183,101770.0,101760.0,0.0619]
[1750673020223,0.06656624,101770.0,101760.0,0.0619]
[1750673020807,0.04303103,101770.0,101760.0,0.0619]
[1750673021027,0.0332044,101770.0,101760.0,0.0619]
[1750673021568,0.0233791,101770.0,101760.0,0.06809]
[1750673022026,0.005,101770.0,101760.0,0.06809]
[1750673022660,0.005,101770.0,101760.0,0.0619]
[1750673024384,0.01418686,101770.0,101760.0,0.0619]
[1750673026912,0.01418353,101770.0,101760.0,0.0619]
[1750673029755,0.01418051,101770.0,101760.0,0.0619]
[1750673032816,0.0141811,101770.0,101760.0,0.0619]
[1750673035154,0.67779785,101790.0,101770.0,0.0634]
[1750673035376,0.01964867,101780.0,101770.0,0.0634]
[1750673035583,0.03801645,101780.0,101770.0,0.0634]
[1750673036517,0.03810749,101780.0,101770.0,0.0634]
[1750673036976,0.04310749,101780.0,101770.0,0.0634]
[1750673037191,0.05293212,101780.0,101770.0,0.0634]
[1750673037400,0.05693212,101780.0,101770.0,0.0634]
[1750673037824,0.096142,101780.0,101770.0,0.0634]
[1750673038245,0.10596682,101780.0,101770.0,0.0319]
[1750673038460,0.11579183,101780.0,101760.0,0.0598]
[1750673038669,0.10596682,101780.0,101760.0,0.0598]
[1750673038902,0.11579183,101780.0,101760.0,0.0598]
[1750673039134,0.11579173,101780.0,101770.0,0.0297]
[1750673039362,0.10596682,101780.0,101770.0,0.0297]
[1750673039621,0.10196672,101780.0,101770.0,0.0297]
[1750673039836,0.10396672,101780.0,101770.0,0.0297]
[1750673040045,0.11379163,101780.0,101770.0,0.0297]
[1750673040254,0.29546964,101780.0,101770.0,0.0297]
[1750673040487,0.29646964,101780.0,101760.0,0.0622]
[1750673040703,0.30829475,101780.0,101760.0,0.0622]
[1750673040920,0.30829984,101780.0,101760.0,0.0622]
[1750673041302,0.11179751,101780.0,101760.0,0.0622]
[1750673041507,0.0999725,101780.0,101760.0,0.0622]
[1750673041888,0.10679761,101780.0,101760.0,0.0622]
[1750673042107,0.11079761,101780.0,101760.0,0.0622]
[1750673042291,0.10679761,101780.0,101760.0,0.0622]
[1750673042496,0.0969725,101780.0,101760.0,0.0622]
[1750673042694,0.1039725,101780.0,101760.0,0.0622]
[1750673042992,0.31030047,101780.0,101760.0,0.0622]
[1750673043201,0.11379761,101780.0,101760.0,0.0622]
[1750673043408,0.31030042,101780.0,101760.0,0.0622]
[1750673044001,0.11379876,101780.0,101760.0,0.0622]
[1750673044288,0.31030119,101780.0,101760.0,0.0622]
[1750673044520,0.31030112,101780.0,101760.0,0.0622]
[1750673044916,0.11379866,101780.0,101760.0,0.0622]
[1750673045123,0.11379934,101780.0,101770.0,0.0311]
[1750673045539,0.01965089,101770.0,101750.0,0.07914132]
[1750673045758,0.04785115,101770.0,101760.0,0.0307]
[1750673046595,0.05767713,101770.0,101760.0,0.0307]
[1750673046807,0.04785115,101770.0,101760.0,0.0307]
[1750673047055,0.04885266,101770.0,101760.0,0.0307]
[1750673047303,0.05804079,101770.0,101760.0,0.0307]
[1750673047528,0.06786686,101770.0,101760.0,0.0307]
[1750673047752,0.26438842,101770.0,101760.0,0.0307]
[1750673048213,0.06786686,101770.0,101760.0,0.0307]
[1750673048432,0.06986686,101770.0,101760.0,0.0307]
[1750673048657,0.26638842,101770.0,101760.0,0.0307]
[1750673049509,0.27110397,101770.0,101760.0,0.0307]
[1750673049728,0.02947968,101760.0,101740.0,0.03]
[1750673049935,0.2352113,101760.0,101740.0,0.03]
[1750673050148,0.26341423,101760.0,101750.0,0.0299]
[1750673050371,0.25358796,101760.0,101750.0,0.0299]
[1750673050596,0.3488227,101760.0,101750.0,0.0299]
[1750673051070,0.01965466,101750.0,101740.0,0.0599]
[1750673051289,0.04722122,101750.0,101740.0,0.0299]
[1750673051512,0.26196274,101750.0,101740.0,0.0299]
[1750673051729,0.2536098,101750.0,101730.0,0.0305]
[1750673051965,0.02948497,101740.0,101730.0,0.0305]
[1750673052241,0.04722427,101740.0,101730.0,0.0305]
[1750673052470,0.06688144,101740.0,101730.0,0.0305]
[1750673052675,0.05705276,101740.0,101730.0,0.0305]
[1750673052889,0.05833432,101740.0,101730.0,0.002]
[1750673053100,0.25360566,101740.0,101730.0,0.002]
[1750673053326,0.25360566,101740.0,101730.0,0.00504632]
[1750673053546,0.32020446,101740.0,101730.0,0.00304632]
[1750673053769,0.32020446,101740.0,101730.0,0.00504632]
[1750673053770,0.37860446,101740.0,101730.0,0.00504632]
[1750673054192,0.37858638,101740.0,101730.0,0.00504632]
[1750673054633,0.37858638,101740.0,101730.0,0.00204632]
[1750673054858,0.3687578,101740.0,101730.0,0.00204632]
[1750673055072,0.3687578,101740.0,101730.0,0.00104632]
[1750673055520,0.21627948,101720.0,101710.0,0.0001]
[1750673055730,0.21627948,101720.0,101710.0,0.03204634]
[1750673055731,0.02949087,101720.0,101710.0,0.03204634]
[1750673055959,0.01966035,101720.0,101710.0,0.03204634]
[1750673056179,0.01966026,101720.0,101710.0,0.06314634]
[1750673056408,0.02949068,101720.0,101710.0,0.06314634]
[1750673056837,0.0393212,101720.0,101710.0,0.06314634]
[1750673057371,0.02949068,101720.0,101710.0,0.06314634]
[1750673057579,0.03932129,101720.0,101710.0,0.06314634]
[1750673057786,0.02949068,101720.0,101710.0,0.06314634]
[1750673058613,0.02949068,101720.0,101710.0,0.06814634]
[1750673058811,0.05855312,101720.0,101710.0,0.06814634]
[1750673059028,0.03889247,101720.0,101710.0,0.06814634]
[1750673059237,0.0487226,101720.0,101710.0,0.06814634]
[1750673059439,0.02906244,101720.0,101710.0,0.06814634]
[1750673059857,0.12233758,101730.0,101710.0,0.06814634]
[1750673060066,0.11397433,101730.0,101710.0,0.06814634]
[1750673060263,0.11561578,101730.0,101720.0,0.0301]
[1750673061553,0.10647843,101730.0,101720.0,0.0301]
[1750673061776,0.09193758,101730.0,101720.0,0.0622]
[1750673061994,0.029568,101730.0,101720.0,0.0622]
[1750673062445,0.029568,101730.0,101720.0,0.06953463]
[1750673062446,0.05889205,101730.0,101720.0,0.06953463]
[1750673062675,0.02932405,101730.0,101720.0,0.06953463]
[1750673062899,0.02932405,101730.0,101720.0,0.0632]
[1750673063121,0.4945,101740.0,101730.0,0.0608]
[1750673064675,0.4955,101740.0,101730.0,0.0608]
[1750673065120,0.4965,101740.0,101730.0,0.0608]
[1750673065747,0.002,101740.0,101730.0,0.0608]
[1750673066807,0.03131434,101740.0,101730.0,0.0608]
[1750673067021,0.002,101740.0,101730.0,0.06688]
[1750673067545,0.002,101740.0,101730.0,0.0608]
[1750673074336,0.002,101740.0,101730.0,0.16109939]
[1750673074760,0.4945,101760.0,101730.0,0.10029939]
[1750673074761,0.5233781,101760.0,101730.0,0.10029939]
[1750673075017,0.53253701,101760.0,101750.0,0.0617]
[1750673076066,0.5325372,101760.0,101750.0,0.0617]
[1750673076539,0.5325372,101760.0,101750.0,0.06887]
[1750673076970,0.5325372,101760.0,101750.0,0.0627]
[1750673078270,0.5036591,101760.0,101750.0,0.0627]
[1750673078708,0.0091591,101760.0,101750.0,0.0627]
[1750673078919,0.08330573,101780.0,101760.0,0.0622]
[1750673079147,0.17112464,101780.0,101760.0,0.0622]
[1750673079779,0.20078546,101780.0,101760.0,0.0622]
[1750673079982,0.20378546,101780.0,101760.0,0.0622]
[1750673080413,0.2136097,101780.0,101760.0,0.0622]
[1750673081040,0.20378546,101780.0,101760.0,0.0622]
[1750673081250,0.2136097,101780.0,101760.0,0.0622]
[1750673081465,0.20378546,101780.0,101760.0,0.0622]
[1750673081687,0.19928564,101780.0,101760.0,0.0622]
[1750673081906,0.21760421,101780.0,101760.0,0.0622]
[1750673082122,0.23725318,101780.0,101760.0,0.0622]
[1750673082349,0.26945308,101780.0,101760.0,0.0622]
[1750673082702,0.51630606,101780.0,101760.0,0.0298]
[1750673082789,0.0420252,101770.0,101750.0,0.0603]
[1750673083048,0.0511854,101770.0,101750.0,0.0603]
[1750673083559,0.0091602,101770.0,101750.0,0.0603]
[1750673083781,0.0189854,101770.0,101750.0,0.0603]
[1750673083999,0.0199854,101770.0,101750.0,0.0603]
[1750673084427,0.0209854,101770.0,101750.0,0.0603]
[1750673085057,0.0111602,101770.0,101750.0,0.0603]
[1750673085194,0.0209854,101770.0,101750.0,0.0603]
[1750673085406,0.0111602,101770.0,101750.0,0.0603]
[1750673086247,0.0111551,101770.0,101750.0,0.0603]
[1750673086459,0.0209804,101770.0,101750.0,0.0603]
[1750673086660,0.0111551,101770.0,101750.0,0.0603]
[1750673087038,0.1528848,101770.0,101750.0,0.0603]
[1750673087531,0.15288471,101770.0,101750.0,0.0603]
[1750673087687,0.12218443,101770.0,101750.0,0.0603]
[1750673087897,0.1418358,101770.0,101750.0,0.0603]
[1750673088102,0.13201002,101770.0,101750.0,0.0603]
[1750673088359,0.1418358,101770.0,101750.0,0.0603]
[1750673088782,0.20068115,101770.0,101740.0,0.13994132]
[1750673088992,0.19085517,101770.0,101750.0,0.0295]
[1750673089196,0.00574329,101770.0,101750.0,0.0295]
[1750673089421,0.02539447,101770.0,101750.0,0.0597]
[1750673089790,0.03522025,101770.0,101750.0,0.0597]
[1750673090006,0.02639505,101770.0,101750.0,0.0597]
[1750673090214,0.03622064,101770.0,101750.0,0.0597]
[1750673090407,0.04704604,101770.0,101750.0,0.0597]
[1750673091099,0.04130275,101770.0,101750.0,0.0597]
[1750673091300,0.03147677,101770.0,101750.0,0.0597]
[1750673091502,0.04130265,101770.0,101750.0,0.0597]
[1750673091847,0.03147677,101770.0,101750.0,0.0597]
[1750673092050,0.02165099,101770.0,101750.0,0.0597]
[1750673092253,0.03619184,101770.0,101760.0,0.0309]
[1750673092465,0.03719184,101770.0,101760.0,0.0309]
[1750673092652,0.04701762,101770.0,101760.0,0.0309]
[1750673093108,0.04601762,101770.0,101760.0,0.0309]
[1750673093280,0.04401762,101770.0,101760.0,0.0309]
[1750673093507,0.04501762,101770.0,101760.0,0.0309]
[1750673094420,0.04501772,101770.0,101760.0,0.0309]
[1750673094846,0.04501762,101770.0,101760.0,0.0309]
[1750673095509,0.03519184,101770.0,101760.0,0.0309]
[1750673096374,0.04501762,101770.0,101760.0,0.0309]
[1750673096586,0.03519184,101770.0,101760.0,0.0309]
[1750673096785,0.04505753,101770.0,101760.0,0.0309]
[1750673097997,0.04505753,101770.0,101760.0,0.0606]
[1750673098790,0.05488331,101770.0,101760.0,0.0606]
[1750673099186,0.07839302,101770.0,101760.0,0.0606]
[1750673099316,0.0882189,101770.0,101760.0,0.0309]
[1750673100324,0.00982656,101760.0,101750.0,0.02407]
[1750673100530,0.02947948,101760.0,101740.0,0.07914132]
[1750673100745,0.06282149,101760.0,101740.0,0.07914132]
[1750673101147,0.29675279,101760.0,101740.0,0.07914132]
[1750673101352,0.09038445,101760.0,101740.0,0.07914132]
[1750673101829,0.09038445,101760.0,101740.0,0.08014132]
[1750673102156,0.09509208,101760.0,101750.0,0.001]
[1750673102360,0.05248171,101760.0,101750.0,0.001]
[1750673102579,0.01965495,101750.0,101740.0,0.001]
[1750673102864,0.02948286,101750.0,101740.0,0.001]
[1750673103057,0.02948276,101750.0,101740.0,0.001]
[1750673103250,0.01965495,101750.0,101740.0,0.001]
[1750673103390,0.02948276,101750.0,101740.0,0.032]
[1750673103847,0.02948267,101750.0,101740.0,0.036]
[1750673104055,0.02952267,101750.0,101740.0,0.036]
[1750673104830,0.03935067,101750.0,101740.0,0.038]
[1750673105011,0.02952267,101750.0,101740.0,0.038]
[1750673105246,0.02952267,101750.0,101740.0,0.0701]
[1750673105447,0.03935058,101750.0,101740.0,0.0701]
[1750673105694,0.02952267,101750.0,101740.0,0.0701]
[1750673105914,0.01969495,101750.0,101740.0,0.0701]
[1750673106124,0.02952276,101750.0,101740.0,0.0701]
[1750673106570,0.01969495,101750.0,101740.0,0.0701]
[1750673107023,0.02952276,101750.0,101740.0,0.0701]
[1750673108319,0.03935076,101750.0,101740.0,0.0701]
[1750673108959,0.01969495,101750.0,101740.0,0.0701]
[1750673109421,0.01969476,101750.0,101740.0,0.0701]
[1750673110050,0.02952238,101750.0,101740.0,0.0701]
[1750673110260,0.01969476,101750.0,101740.0,0.0701]
[1750673110441,0.01969485,101750.0,101740.0,0.0701]
[1750673110900,0.00986733,101750.0,101740.0,0.0701]
[1750673111551,0.00986733,101750.0,101740.0,0.07711]
[1750673111552,4e-05,101750.0,101740.0,0.07711]
[1750673111778,4e-05,101750.0,101740.0,0.0701]
[1750673114444,0.00921789,101750.0,101740.0,0.0701]
[1750673116933,0.00922073,101750.0,101740.0,0.0701]
[1750673119802,0.00922068,101750.0,101740.0,0.0701]
[1750673120993,0.01904782,101750.0,101740.0,0.0701]
[1750673121194,0.03870267,101750.0,101740.0,0.0701]
[1750673122423,0.03870414,101750.0,101740.0,0.0701]
[1750673122636,0.04853186,101750.0,101740.0,0.0701]
[1750673122843,0.04853287,101750.0,101740.0,0.0701]
[1750673123502,0.2908454,101750.0,101740.0,0.006]
[1750673123714,0.3143528,101750.0,101740.0,0.006]
[1750673123959,0.02948527,101740.0,101730.0,0.0321]
[1750673124178,0.04849702,101740.0,101730.0,0.0321]
[1750673124408,0.06685715,101740.0,101720.0,0.0302]
[1750673124614,0.00982907,101730.0,101720.0,0.0302]
[1750673124827,0.00918307,101730.0,101720.0,0.0302]
[1750673125885,0.0288415,101730.0,101720.0,0.0302]
[1750673126312,0.01901214,101730.0,101720.0,0.0302]
[1750673126521,0.01901214,101730.0,101720.0,0.0664]
[1750673126522,0.0288413,101730.0,101720.0,0.0664]
[1750673126735,0.03867056,101730.0,101720.0,0.0664]
[1750673126963,0.04850001,101730.0,101720.0,0.0644]
[1750673127178,0.05832966,101730.0,101720.0,0.0644]
[1750673127380,0.05836966,101730.0,101720.0,0.0654]
[1750673127591,0.03871056,101730.0,101720.0,0.0654]
[1750673128041,0.04854001,101730.0,101720.0,0.0654]
[1750673128331,0.03870483,101730.0,101720.0,0.0654]
[1750673128561,0.01904641,101730.0,101720.0,0.07195]
[1750673129010,0.00921734,101730.0,101720.0,0.07195]
[1750673129755,0.00921734,101730.0,101720.0,0.0654]
[1750673131468,4e-05,101730.0,101720.0,0.16569939]
[1750673140569,4e-05,101730.0,101720.0,0.0654]
[1750673142403,0.0302,101750.0,101730.0,0.0626]
[1750673142620,0.03746461,101750.0,101740.0,0.03]
[1750673142843,0.02763747,101750.0,101740.0,0.03]
[1750673143134,0.02763747,101750.0,101740.0,0.0626]
[1750673143381,0.00927365,101750.0,101740.0,0.0626]
[1750673143876,0.01327365,101750.0,101740.0,0.0626]
[1750673144492,0.02310088,101750.0,101740.0,0.0626]
[1750673144703,0.01327365,101750.0,101740.0,0.06886]
[1750673144915,0.01627365,101750.0,101740.0,0.0626]
[1750673145503,0.01527365,101750.0,101740.0,0.0626]
[1750673146119,0.00609102,101750.0,101740.0,0.0626]
[1750673146371,0.00709102,101750.0,101740.0,0.0626]
[1750673146879,0.01627465,101750.0,101740.0,0.0626]
[1750673148732,0.00709102,101750.0,101740.0,0.0626]
[1750673149542,0.00918532,101760.0,101740.0,0.0626]
[1750673149742,0.07720943,101760.0,101740.0,0.07677413]
[1750673150150,4e-05,101750.0,101740.0,0.07677413]
[1750673150354,0.01969457,101750.0,101740.0,0.03]
[1750673151272,0.03806738,101750.0,101740.0,0.03]
[1750673151462,0.0478951,101750.0,101740.0,0.03]
[1750673151663,0.08852301,101750.0,101730.0,0.0631]
[1750673151902,0.08852291,101750.0,101730.0,0.06319102]
[1750673152109,0.28508409,101750.0,101730.0,0.06319102]
[1750673152314,0.08852389,101750.0,101730.0,0.06319102]
[1750673152667,0.0098281,101740.0,101730.0,0.06319102]
[1750673153263,0.02952296,101750.0,101730.0,0.06319102]
[1750673153473,0.04889493,101750.0,101740.0,0.0323]
[1750673153910,0.03806731,101750.0,101740.0,0.0323]
[1750673154369,0.04789493,101750.0,101740.0,0.0323]
[1750673156264,0.04889493,101750.0,101740.0,0.0323]
[1750673157337,0.07242553,101750.0,101740.0,0.0323]
[1750673157978,0.04889493,101750.0,101740.0,0.0323]
[1750673158186,0.07243367,101750.0,101740.0,0.0323]
[1750673159069,0.05277872,101750.0,101740.0,0.0323]
[1750673159512,0.06260605,101750.0,101740.0,0.0323]
[1750673159716,0.05277872,101750.0,101740.0,0.0323]
[1750673160559,0.07243357,101750.0,101740.0,0.0323]
[1750673160790,0.05277872,101750.0,101740.0,0.0323]
[1750673161533,0.06197142,101750.0,101740.0,0.0323]
[1750673162727,0.04359868,101750.0,101740.0,0.0323]
[1750673163139,0.03440598,101750.0,101740.0,0.0323]
[1750673163356,0.02457884,101750.0,101740.0,0.0323]
[1750673163783,0.02457884,101750.0,101740.0,0.064]
[1750673164283,0.03440598,101750.0,101740.0,0.064]
[1750673164931,0.04423331,101750.0,101740.0,0.0323]
[1750673165143,0.03440598,101750.0,101740.0,0.0323]
[1750673165315,0.04423321,101750.0,101740.0,0.0323]
[1750673167219,0.02457884,101750.0,101740.0,0.0323]
[1750673167371,0.03440598,101750.0,101740.0,0.0323]
[1750673168409,0.02457884,101750.0,101740.0,0.0323]
[1750673168727,0.03440598,101750.0,101740.0,0.0323]
[1750673168936,0.04423331,101750.0,101740.0,0.0323]
[1750673169162,0.03440598,101750.0,101740.0,0.0323]
[1750673169573,0.05342852,101750.0,101740.0,0.0323]
[1750673169796,0.07181901,101750.0,101740.0,0.0323]
[1750673170459,0.08164644,101750.0,101740.0,0.0323]
[1750673170673,0.0816479,101750.0,101740.0,0.0323]
[1750673170883,0.09147552,101750.0,101740.0,0.0323]
[1750673171108,0.09147552,101750.0,101730.0,0.06369102]
[1750673171369,0.0816479,101750.0,101740.0,0.0314]
[1750673171861,0.08164803,101750.0,101740.0,0.0314]
[1750673172082,0.09047555,101750.0,101740.0,0.0314]
[1750673172524,0.09147555,101750.0,101740.0,0.0314]
[1750673172743,0.08164789,101750.0,101740.0,0.0314]
[1750673172971,0.08064789,101750.0,101740.0,0.0314]
[1750673173436,0.08164789,101750.0,101740.0,0.0314]
[1750673173664,0.09147541,101750.0,101740.0,0.0314]
[1750673175193,0.10130313,101750.0,101740.0,0.0314]
[1750673175452,0.10130303,101750.0,101740.0,0.0314]
[1750673175706,0.0914777,101750.0,101740.0,0.0314]
[1750673176230,0.10130551,101750.0,101740.0,0.0314]
[1750673177100,0.08291246,101750.0,101740.0,0.0314]
[1750673177312,0.10130712,101750.0,101740.0,0.0314]
[1750673177748,0.10130798,101750.0,101740.0,0.0314]
[1750673178000,0.09147998,101750.0,101740.0,0.0314]
[1750673178645,0.09147825,101750.0,101740.0,0.0314]
[1750673179495,0.28803892,101750.0,101740.0,0.0314]
[1750673180139,0.27821149,101750.0,101740.0,0.0314]
[1750673180543,0.08781737,101750.0,101740.0,0.0314]
[1750673180992,0.09764509,101750.0,101740.0,0.0314]
[1750673181206,0.10747309,101750.0,101740.0,0.0314]
[1750673181942,0.11730061,101750.0,101740.0,0.0314]
[1750673185166,0.23587124,101750.0,101740.0,0.0314]
[1750673185827,0.03931105,101750.0,101740.0,0.0314]
[1750673186862,0.02948305,101750.0,101740.0,0.0644]
[1750673187504,0.01965456,101750.0,101740.0,0.0644]
[1750673187718,0.0393098,101750.0,101740.0,0.0644]
[1750673187929,0.02948208,101750.0,101740.0,0.0644]
[1750673188136,0.0393098,101750.0,101740.0,0.0644]
[1750673188572,0.02948208,101750.0,101740.0,0.0644]
[1750673188790,0.0393098,101750.0,101740.0,0.0644]
[1750673189018,0.01965456,101750.0,101740.0,0.0708491]
[1750673189233,0.02948208,101750.0,101740.0,0.0644]
[1750673190134,0.0393097,101750.0,101740.0,0.0644]
[1750673190335,0.02948208,101750.0,101740.0,0.0644]
[1750673192448,0.01965456,101750.0,101740.0,0.0644]
[1750673192666,0.05708566,101750.0,101740.0,0.0644]
[1750673193280,0.05708565,101750.0,101740.0,0.0644]
[1750673193469,0.04725813,101750.0,101740.0,0.0644]
[1750673193676,0.0374308,101750.0,101740.0,0.0644]
[1750673193892,0.02760357,101750.0,101740.0,0.07876323]
[1750673194103,0.02760357,101750.0,101740.0,0.0644]
[1750673195399,0.00920048,101750.0,101740.0,0.16469939]
[1750673195647,0.09829032,101780.0,101760.0,0.0619]
[1750673195893,0.09829032,101780.0,101770.0,0.0619]
[1750673195894,0.1200836,101780.0,101770.0,0.0619]
[1750673196116,0.11087852,101780.0,101770.0,0.0619]
[1750673196330,0.12008377,101780.0,101770.0,0.0619]
[1750673196543,0.09645993,101780.0,101770.0,0.06709]
[1750673196787,0.11998884,101780.0,101770.0,0.06709]